bitfinex-derivatives/quotes_ETHF0:USTF0_20250917
["timestamp","ask_amount","ask_price","bid_price","bid_amount"]
[1758080026915,0.25710639,4515.6,4515.5,4.5328]
[1758080027215,0.48710639,4515.6,4515.5,4.8462]
[1758080027421,0.25710639,4515.6,4515.5,4.8462]
[1758080027716,0.48710639,4515.6,4515.5,4.8462]
[1758080029218,0.25710639,4515.6,4515.5,4.8462]
[1758080029424,0.48710639,4515.6,4515.5,4.8462]
[1758080029718,0.48710639,4515.6,4515.5,0.8462]
[1758080031217,0.48710639,4515.6,4515.5,4.8462]
[1758080031218,0.25710639,4515.6,4515.5,4.8462]
[1758080031520,3.2078,4516.1,4516.0,0.8462]
[1758080031720,4.07821099,4516.1,4516.0,0.8462]
[1758080031917,3.84821099,4516.1,4516.0,0.8462]
[1758080032118,4.07821099,4516.1,4516.0,0.8462]
[1758080034122,4.07721099,4516.1,4516.0,0.8462]
[1758080035919,4.63296454,4516.1,4516.0,0.8462]
[1758080036124,4.86196454,4516.1,4516.0,0.8462]
[1758080036426,4.86196454,4516.1,4516.0,0.75005982]
[1758080038124,4.86196454,4516.1,4516.0,0.8444]
[1758080039713,4.07721099,4516.1,4516.0,0.8444]
[1758080039916,4.86196454,4516.1,4516.0,0.8444]
[1758080040214,0.64041099,4516.1,4516.0,0.8444]
[1758080040725,0.86941099,4516.1,4516.0,0.8444]
[1758080041527,0.64041099,4516.1,4516.0,0.8444]
[1758080041927,0.86941099,4516.1,4516.0,0.8444]
[1758080042723,0.64041099,4516.1,4516.0,0.8444]
[1758080042921,0.86941099,4516.1,4516.0,0.8444]
[1758080043322,1.08136821,4516.1,4516.0,0.8444]
[1758080043521,0.85236821,4516.1,4516.0,0.8444]
[1758080044521,0.85236821,4516.1,4516.0,4.8444]
[1758080045518,0.85236821,4516.1,4516.0,5.62915355]
[1758080050128,0.85236821,4516.1,4516.0,0.4332]
[1758080050325,0.85236821,4516.1,4516.0,0.21727963]
[1758080051127,0.85236821,4516.1,4516.0,0.43067963]
[1758080051431,0.85236821,4516.1,4516.0,0.21727963]
[1758080051432,4.06016821,4516.1,4516.0,0.21727963]
[1758080057233,45.08816821,4516.1,4516.0,0.21727963]
[1758080058632,49.30959822,4516.1,4515.5,0.1204]
[1758080058933,3.99255355,4515.6,4515.5,0.1204]
[1758080059133,5.07292176,4515.6,4515.5,0.1204]
[1758080059739,9.07292176,4515.6,4515.5,0.1204]
[1758080060336,9.07292176,4515.6,4515.5,0.01374102]
[1758080060634,9.04639288,4515.6,4515.5,0.01374102]
[1758080060837,9.04639288,4515.6,4515.5,0.32614102]
[1758080063334,49.84639288,4515.6,4515.5,0.32614102]
[1758080065338,50.63114643,4515.6,4515.5,0.32614102]
[1758080065732,50.02300935,4515.6,4515.5,0.32614102]
[1758080066230,50.8077629,4515.6,4515.1,0.3124]
[1758080066435,45.9799102,4515.6,4515.5,0.4351]
[1758080066638,46.75372191,4515.6,4515.5,0.4351]
[1758080067249,45.18622818,4515.6,4515.5,0.4351]
[1758080067539,46.75573528,4515.6,4515.5,0.4351]
[1758080067736,50.75573528,4515.6,4515.5,0.4351]
[1758080068433,49.97098173,4515.6,4515.5,0.4351]
[1758080068633,45.97098173,4515.6,4515.5,0.4351]
[1758080068837,46.75573528,4515.6,4515.5,0.4351]
[1758080069238,46.75573528,4515.6,4515.0,0.1425]
[1758080069438,3.2078,4515.1,4515.0,0.1425]
[1758080069639,5.77911881,4515.1,4515.0,0.1425]
[1758080069839,46.57911881,4515.1,4515.0,0.1204]
[1758080070539,46.57886895,4515.1,4515.0,0.1204]
[1758080070736,45.7941154,4515.1,4515.0,0.1204]
[1758080071043,46.75813001,4515.1,4515.0,0.1204]
[1758080071237,46.53013001,4515.1,4515.0,0.1204]
[1758080071437,44.78136185,4515.1,4515.0,0.8055]
[1758080071742,45.7941154,4515.1,4515.0,0.8055]
[1758080072244,45.38130601,4515.1,4515.0,0.8055]
[1758080072546,45.60930601,4515.1,4515.0,0.8055]
[1758080072835,45.38130601,4515.1,4515.0,0.8055]
[1758080073044,45.60930601,4515.1,4515.0,0.8055]
[1758080073244,45.38130601,4515.1,4515.0,0.8055]
[1758080073438,45.60930601,4515.1,4515.0,0.8055]
[1758080075134,45.38130601,4515.1,4515.0,0.8055]
[1758080075535,45.60930601,4515.1,4515.0,0.8055]
[1758080075938,45.38130601,4515.1,4515.0,0.8055]
[1758080076138,45.60930601,4515.1,4515.0,0.8055]
[1758080077037,45.38130601,4515.1,4515.0,0.8055]
[1758080077238,45.60930601,4515.1,4515.0,0.8055]
[1758080078540,45.38130601,4515.1,4515.0,0.8055]
[1758080078844,45.60930601,4515.1,4515.0,0.8055]
[1758080079243,45.38130601,4515.1,4515.0,0.8055]
[1758080079543,45.60930601,4515.1,4515.0,0.8055]
[1758080080839,44.59655246,4515.1,4515.0,0.8055]
[1758080081436,44.82455246,4515.1,4515.0,0.8055]
[1758080081641,4.02455246,4515.1,4515.0,0.8055]
[1758080083247,4.02455246,4515.1,4515.0,4.8055]
[1758080083944,0.228,4515.1,4515.0,4.8055]
[1758080084341,0.58838554,4515.4,4515.0,4.8055]
[1758080084541,0.78475355,4515.5,4515.2,0.3894]
[1758080084542,0.58838554,4515.3,4515.2,0.3894]
[1758080084741,0.228,4515.3,4515.2,0.6851]
[1758080084946,0.81638554,4515.3,4515.2,0.6851]
[1758080085149,0.58838554,4515.3,4515.2,0.6851]
[1758080085451,3.99255355,4515.6,4515.5,0.8039]
[1758080085743,4.58117909,4515.6,4515.5,0.8039]
[1758080085948,4.80917909,4515.6,4515.5,0.8039]
[1758080086447,4.02442554,4515.6,4515.5,0.8039]
[1758080086642,4.80917909,4515.6,4515.5,0.8039]
[1758080087552,4.02442554,4515.6,4515.5,0.8039]
[1758080087752,4.02442554,4515.6,4515.5,1.58865355]
[1758080088054,3.79642554,4515.6,4515.5,1.58865355]
[1758080088247,4.02442554,4515.6,4515.5,1.58865355]
[1758080088853,3.2078,4516.2,4516.0,0.8039]
[1758080089151,32.7130957,4516.1,4516.0,0.8039]
[1758080089343,32.4850957,4516.1,4516.0,0.8039]
[1758080089542,0.5890957,4516.1,4516.0,0.8039]
[1758080089739,0.8170957,4516.1,4516.0,0.8039]
[1758080090243,0.228,4516.1,4516.0,0.8039]
[1758080091045,40.8,4516.6,4516.5,0.1188]
[1758080091244,0.81659897,4516.6,4516.5,0.8039]
[1758080092555,0.81559897,4516.6,4516.5,0.8039]
[1758080095152,0.227,4516.6,4516.5,0.8039]
[1758080098749,3.2078,4516.7,4516.5,0.8039]
[1758080098950,3.2078,4516.7,4516.6,0.3048]
[1758080099151,4.02232294,4516.7,4516.6,0.7114]
[1758080099450,3.4348,4516.7,4516.6,0.7114]
[1758080100158,4.0224061,4516.7,4516.6,0.7114]
[1758080100658,3.4348,4516.7,4516.6,0.7114]
[1758080104361,4.02266239,4516.7,4516.6,0.7114]
[1758080105757,4.02266239,4516.7,4515.9,4.09835692]
[1758080105960,3.4348,4516.7,4516.6,0.2123]
[1758080106259,4.02301094,4516.7,4516.6,0.2123]
[1758080107454,4.02301094,4516.7,4516.5,0.1201]
[1758080107655,1.52976786,4516.6,4516.5,0.1201]
[1758080107850,0.58821094,4516.6,4516.5,0.6372]
[1758080108055,3.2078,4516.7,4516.6,0.3048]
[1758080108258,3.2078,4516.7,4516.6,0.7114]
[1758080108259,3.79598057,4516.7,4516.6,0.7114]
[1758080108454,3.2078,4516.7,4516.6,0.7114]
[1758080108862,3.2078,4516.7,4516.6,0.3048]
[1758080109154,4.14935692,4516.7,4516.6,0.3048]
[1758080109356,8.7377972,4516.7,4516.0,0.1422]
[1758080109556,4.14935692,4516.1,4516.0,0.447]
[1758080109755,4.37635692,4516.1,4516.0,0.447]
[1758080109953,4.37635692,4516.1,4516.0,0.4249]
[1758080110359,3.4348,4516.1,4516.0,0.4249]
[1758080110557,3.4348,4516.1,4516.0,0.6372]
[1758080111957,3.2078,4516.1,4516.0,0.8315]
[1758080112165,3.4348,4516.1,4516.0,0.8315]
[1758080113365,4.02408646,4516.1,4516.0,0.8315]
[1758080113861,3.2078,4516.6,4516.0,1.46825692]
[1758080114068,3.2078,4516.6,4516.5,0.8315]
[1758080114367,4.02413229,4516.6,4516.5,0.8315]
[1758080115262,3.79713229,4516.6,4516.5,0.8315]
[1758080115468,3.2078,4517.1,4517.0,0.8315]
[1758080115769,4.02458371,4517.1,4517.0,0.8315]
[1758080118061,3.79758371,4517.1,4517.0,4.8315]
[1758080118261,3.2078,4517.1,4517.0,4.8315]
[1758080119264,0.227,4517.2,4517.1,0.3048]
[1758080119467,0.227,4517.2,4517.1,1.65295692]
[1758080120862,0.227,4517.2,4517.1,0.7114]
[1758080128971,3.2078,4517.9,4517.1,0.7114]
[1758080129171,0.81498189,4517.8,4517.7,0.3172]
[1758080130371,0.81498189,4517.8,4517.7,0.5162]
[1758080131573,0.58898189,4517.8,4517.7,0.7235]
[1758080131775,0.81498189,4517.8,4517.7,0.7235]
[1758080134980,0.58898189,4517.8,4517.7,0.7235]
[1758080135476,0.81498189,4517.8,4517.7,0.7235]
[1758080141173,0.88908189,4517.8,4517.7,0.50763008]
[1758080142887,0.81498189,4517.8,4517.7,0.50763008]
[1758080143492,0.88908189,4517.8,4517.7,0.50763008]
[1758080146796,0.81398189,4517.8,4517.7,0.50763008]
[1758080149195,0.88808189,4517.8,4517.7,0.50763008]
[1758080149891,0.81398189,4517.8,4517.7,0.50763008]
[1758080150996,0.58898189,4517.8,4517.7,0.50763008]
[1758080151399,0.81398189,4517.8,4517.7,0.50763008]
[1758080151800,0.81398189,4517.8,4517.7,1.29151959]
[1758080151998,0.58898189,4517.8,4517.7,1.29151959]
[1758080152195,0.81398189,4517.8,4517.7,1.29151959]
[1758080152396,0.58898189,4517.8,4517.7,1.29151959]
[1758080154998,0.225,4517.9,4517.8,0.7313]
[1758080155201,0.81424119,4517.9,4517.8,0.7313]
[1758080156406,0.225,4517.9,4517.8,0.7313]
[1758080157003,3.2078,4518.4,4518.0,0.1227]
[1758080157207,0.81415232,4518.3,4518.2,0.4102]
[1758080157407,0.81415232,4518.3,4518.2,0.7313]
[1758080157602,0.58915232,4518.3,4518.2,0.7313]
[1758080158103,0.81415232,4518.3,4518.2,0.7313]
[1758080158303,0.81415232,4518.3,4518.2,1.51518951]
[1758080158505,0.225,4518.3,4518.2,1.51518951]
[1758080159209,0.81425592,4518.3,4518.2,1.51518951]
[1758080159509,0.225,4518.3,4518.2,1.51518951]
[1758080161510,0.0739,4518.6,4518.5,0.8198]
[1758080161705,0.88798251,4518.6,4518.5,0.8198]
[1758080162303,1.79197202,4518.6,4518.5,0.4164]
[1758080162504,1.59797202,4518.6,4518.1,0.2998]
[1758080162711,4.13948951,4518.2,4518.1,0.2998]
[1758080162912,4.95357202,4518.2,4518.1,0.5]
[1758080163811,4.99977202,4518.2,4518.1,0.5]
[1758080164211,4.16968251,4518.2,4518.1,0.5]
[1758080165215,3.94468251,4518.2,4518.1,0.7032]
[1758080165409,4.16968251,4518.2,4518.1,0.7032]
[1758080166514,0.78388951,4518.6,4518.0,0.1448]
[1758080166515,0.0739,4518.6,4518.5,0.52]
[1758080166815,0.88736699,4518.6,4518.5,1.60368951]
[1758080168211,0.66236699,4518.6,4518.5,0.8198]
[1758080168416,0.96126699,4518.6,4518.5,0.8198]
[1758080168610,1.00746699,4518.6,4518.5,0.6166]
[1758080168810,1.7913565,4518.6,4518.5,0.6166]
[1758080169719,1.7451565,4518.6,4518.5,0.6166]
[1758080170314,1.7913565,4518.6,4518.5,0.6166]
[1758080170815,1.7451565,4518.6,4518.5,0.6166]
[1758080171022,0.96126699,4518.6,4518.5,0.6166]
[1758080171609,0.96126699,4518.6,4518.5,0.8198]
[1758080178924,1.00746699,4518.6,4518.5,0.4164]
[1758080180424,1.00746699,4518.6,4518.5,0.1166]
[1758080180625,0.194,4518.5,4518.3,0.0221]
[1758080180827,1.00746699,4518.4,4518.3,0.3219]
[1758080181529,0.96126699,4518.4,4518.3,0.5221]
[1758080182431,0.96126699,4518.4,4518.3,0.5]
[1758080184031,1.00746699,4518.4,4518.3,0.5]
[1758080184433,0.96126699,4518.4,4518.3,0.5]
[1758080185529,0.88736699,4518.4,4518.3,0.7032]
[1758080187936,0.81346699,4518.4,4518.3,0.7032]
[1758080189643,0.58846699,4518.4,4518.3,0.7032]
[1758080189936,0.81346699,4518.4,4518.3,0.7032]
[1758080191053,0.58846699,4518.4,4518.3,0.7032]
[1758080191245,0.81346699,4518.4,4518.3,0.7032]
[1758080192850,0.58846699,4518.4,4518.3,0.7032]
[1758080193046,0.58846699,4518.4,4518.3,0.4034]
[1758080193247,3.2822,4518.8,4518.7,0.6933]
[1758080193449,4.29382796,4518.8,4518.7,1.46267519]
[1758080194748,4.55552796,4518.8,4518.7,1.46267519]
[1758080194955,4.55552796,4518.8,4518.7,0.2938]
[1758080195344,0.2617,4518.7,4518.5,0.2938]
[1758080195545,0.6697,4518.3,4518.1,0.0221]
[1758080195849,5.47601747,4518.2,4518.1,0.0221]
[1758080196242,5.47601747,4518.2,4517.6,0.2938]
[1758080196448,0.408,4517.6,4517.5,0.6167]
[1758080196647,0.633,4517.6,4517.5,0.6167]
[1758080197047,0.633,4517.6,4517.5,0.8149]
[1758080197250,0.225,4517.6,4517.5,0.8149]
[1758080202551,0.436,4517.6,4517.5,0.8149]
[1758080209566,0.8947,4517.6,4517.5,0.8149]
[1758080209760,4.69192277,4517.6,4517.5,0.8149]
[1758080215070,1.48412277,4517.6,4517.5,0.8149]
[1758080215264,4.69192277,4517.6,4517.5,0.8149]
[1758080215673,3.4328,4517.6,4517.5,0.8149]
[1758080216767,0.225,4517.6,4517.5,0.8149]
[1758080219770,0.896,4517.6,4517.5,0.8149]
[1758080219970,4.69256815,4517.6,4517.3,0.3143]
[1758080220271,0.6722,4517.4,4517.3,0.0221]
[1758080220472,1.26096815,4517.4,4517.3,0.0221]
[1758080220771,1.26096815,4517.4,4517.0,0.4197]
[1758080220968,0.4099,4516.6,4516.5,3.3269]
[1758080221171,0.6722,4516.6,4516.5,3.8253]
[1758080221372,0.4099,4516.6,4516.5,4.0254]
[1758080221968,0.2133,4516.6,4516.5,4.0254]
[1758080222269,0.225,4516.8,4516.7,0.6985]
[1758080222465,3.2078,4517.1,4517.0,0.5338]
[1758080222662,4.20619148,4517.1,4517.0,1.76694082]
[1758080222868,4.46849148,4517.1,4517.0,0.6259]
[1758080223074,4.46849148,4517.1,4517.0,0.4984]
[1758080223767,4.46849148,4517.1,4516.8,0.0221]
[1758080223974,0.6722,4516.9,4516.8,0.3143]
[1758080224165,1.26069148,4516.9,4516.8,0.3143]
[1758080224362,1.26069148,4516.9,4516.8,0.0221]
[1758080224569,5.48208149,4516.9,4516.8,0.0221]
[1758080224767,5.26069148,4516.9,4516.8,0.0221]
[1758080225871,5.26069148,4516.9,4516.3,0.2922]
[1758080226071,3.6177,4516.4,4516.3,0.4984]
[1758080226272,4.43119148,4516.4,4516.3,0.4984]
[1758080226674,4.69349148,4516.4,4516.3,0.4984]
[1758080228175,0.4099,4515.6,4515.5,0.3337]
[1758080228480,0.8972,4515.6,4515.5,0.3337]
[1758080228666,0.6349,4515.6,4515.5,0.5338]
[1758080228872,0.6349,4515.6,4515.5,0.826]
[1758080232475,0.4383,4515.6,4515.5,0.826]
[1758080232669,0.225,4515.6,4515.5,0.826]
[1758080234279,0.2133,4515.6,4515.5,0.826]
[1758080234480,0.4383,4515.6,4515.5,0.826]
[1758080234680,0.225,4515.6,4515.5,0.826]
[1758080235380,0.4383,4515.6,4515.5,0.826]
[1758080237181,0.225,4515.6,4515.5,0.826]
[1758080237387,0.225,4515.6,4515.5,1.76694082]
[1758080238075,3.4211,4516.4,4516.3,0.6985]
[1758080238275,4.105,4516.4,4516.3,0.2922]
[1758080238476,4.105,4516.4,4516.1,0.2922]
[1758080238674,4.105,4516.4,4515.6,0.2922]
[1758080238872,0.6722,4515.7,4515.6,0.4984]
[1758080239085,3.88,4515.7,4515.6,0.2922]
[1758080239383,9.04239082,4515.7,4515.3,0.0221]
[1758080239579,0.22146,4515.6,4515.3,0.0221]
[1758080239790,0.6722,4515.4,4515.3,0.3143]
[1758080239985,0.4099,4515.4,4515.3,0.7206]
[1758080240185,0.4099,4515.4,4515.3,0.6985]
[1758080240385,0.6349,4515.4,4515.3,0.6985]
[1758080240783,0.8972,4515.4,4515.3,0.2922]
[1758080241382,0.4099,4515.4,4515.3,0.6985]
[1758080241584,0.6349,4515.4,4515.3,0.6985]
[1758080241989,0.8972,4515.4,4515.3,0.4984]
[1758080242285,0.8972,4515.4,4515.3,0.2922]
[1758080242680,0.8972,4515.4,4515.1,0.0221]
[1758080242882,0.6722,4515.3,4515.2,0.2922]
[1758080243088,3.88,4515.3,4515.2,0.2922]
[1758080243280,3.88,4515.3,4515.2,0.4984]
[1758080243788,3.6177,4515.3,4515.2,0.6985]
[1758080243988,3.6461,4515.3,4515.2,0.6985]
[1758080245086,4.105,4515.3,4515.2,0.6985]
[1758080245585,4.105,4515.3,4515.2,0.4984]
[1758080246081,3.2078,4515.3,4515.2,0.6985]
[1758080246288,3.8427,4515.3,4515.2,0.6985]
[1758080246683,4.105,4515.3,4515.2,0.6985]
[1758080248183,3.8427,4515.3,4515.2,0.6985]
[1758080248689,3.6177,4515.3,4515.2,0.6985]
[1758080248881,3.8427,4515.3,4515.2,0.6985]
[1758080249185,3.6461,4515.3,4515.2,0.6985]
[1758080249988,3.2078,4515.3,4515.2,0.6985]
[1758080250190,3.4328,4515.3,4515.2,0.6985]
[1758080250486,4.1152,4515.3,4515.2,0.2922]
[1758080250686,4.1152,4515.3,4515.1,0.0221]
[1758080250990,0.6824,4515.2,4515.1,0.5315]
[1758080251195,0.4203,4515.2,4515.1,0.7425]
[1758080251490,0.4203,4515.2,4515.1,0.7204]
[1758080251988,0.4326,4515.2,4515.1,0.7204]
[1758080252488,0.6453,4515.2,4515.1,0.7204]
[1758080255186,0.9074,4515.2,4515.1,0.5094]
[1758080255784,0.9074,4515.2,4515.1,0.3014]
[1758080256590,0.9074,4515.2,4514.9,0.0221]
[1758080256591,1.49556289,4515.2,4514.9,0.0221]
[1758080256887,1.49556289,4515.2,4514.0,0.1275]
[1758080256888,0.6824,4514.4,4514.3,0.3014]
[1758080257189,4.70336289,4514.4,4514.3,0.3014]
[1758080257388,4.1152,4514.4,4514.3,0.3014]
[1758080257595,4.70315392,4514.4,4514.3,0.3014]
[1758080257987,4.1152,4514.4,4514.3,0.3014]
[1758080259894,4.1152,4514.4,4514.1,0.3014]
[1758080260084,0.4203,4513.7,4513.6,0.5094]
[1758080260395,0.4326,4513.7,4513.6,0.7204]
[1758080260594,0.225,4513.7,4513.6,0.7204]
[1758080260994,3.2078,4514.4,4514.0,0.1229]
[1758080261195,0.2076,4514.1,4514.0,0.8433]
[1758080261392,0.225,4514.1,4514.0,0.8433]
[1758080262789,3.2078,4514.4,4514.1,0.3014]
[1758080262985,3.4154,4514.4,4514.3,0.7204]
[1758080263188,4.22738197,4514.4,4514.3,0.7204]
[1758080265493,4.44008197,4514.4,4514.3,0.7204]
[1758080265696,4.21508197,4514.4,4514.3,0.7204]
[1758080265895,4.22738197,4514.4,4514.3,0.7204]
[1758080266095,3.6404,4514.4,4514.3,0.7204]
[1758080266297,4.22812497,4514.4,4514.3,0.7204]
[1758080266686,4.00312497,4514.4,4514.3,0.7204]
[1758080266899,4.22812497,4514.4,4514.3,0.7204]
[1758080267094,3.2078,4515.0,4514.5,0.1229]
[1758080267397,3.2078,4515.0,4514.9,0.7204]
[1758080267596,3.4328,4515.0,4514.9,0.7204]
[1758080268388,3.2078,4515.0,4514.9,0.7204]
[1758080268793,3.4328,4515.0,4514.9,0.7204]
[1758080269896,3.2078,4515.0,4514.9,0.7204]
[1758080270093,3.4328,4515.0,4514.9,0.7204]
[1758080270293,3.2078,4515.0,4514.9,0.7204]
[1758080270494,3.2078,4515.6,4515.5,0.8433]
[1758080270694,32.5864,4516.1,4516.0,0.6323]
[1758080270997,0.58875836,4516.1,4516.0,0.8433]
[1758080271195,0.225,4516.1,4516.0,0.8433]
[1758080271801,3.2078,4516.2,4516.1,0.3014]
[1758080271990,3.4328,4516.2,4516.1,0.7204]
[1758080272301,3.6404,4516.2,4516.1,0.7204]
[1758080273099,3.8531,4516.2,4516.1,0.7204]
[1758080273796,4.1152,4516.2,4516.1,0.5094]
[1758080274002,4.1152,4516.2,4516.1,0.3014]
[1758080274498,4.1152,4516.2,4516.1,0.5094]
[1758080275800,4.1152,4516.2,4516.1,1.29400456]
[1758080275996,4.1152,4516.2,4516.1,1.50500456]
[1758080275997,3.4154,4516.2,4516.1,1.50500456]
[1758080276202,3.4328,4516.2,4516.1,1.50500456]
[1758080277908,3.2078,4516.2,4516.1,1.50500456]
[1758080278202,3.4328,4516.2,4516.1,1.50500456]
[1758080278706,3.2078,4516.2,4516.1,1.50500456]
[1758080278906,3.4328,4516.2,4516.1,1.50500456]
[1758080279204,0.225,4516.2,4516.1,1.50500456]
[1758080279594,0.2023,4516.6,4516.5,0.4334]
[1758080279801,0.4273,4516.6,4516.5,1.60730456]
[1758080279996,0.9007,4516.6,4516.5,1.60730456]
[1758080280203,0.9007,4516.6,4516.0,0.1229]
[1758080280204,1.68530456,4516.6,4516.0,0.90750456]
[1758080280510,0.4133,4516.1,4516.0,1.29680456]
[1758080280710,0.6383,4516.1,4516.0,1.29680456]
[1758080281005,0.6383,4516.1,4516.0,1.60750456]
[1758080281802,0.9007,4516.1,4516.0,1.60750456]
[1758080282404,0.6757,4515.8,4515.7,1.09530456]
[1758080282911,0.6757,4515.8,4515.7,1.29010456]
[1758080285112,0.4133,4515.8,4515.7,1.29010456]
[1758080285312,0.4133,4515.8,4515.7,1.48460456]
[1758080285613,0.225,4515.9,4515.7,1.48460456]
[1758080285913,0.225,4515.9,4515.7,1.17390456]
[1758080286114,0.225,4515.9,4515.8,0.7]
[1758080286309,0.6757,4515.9,4515.6,0.3107]
[1758080286607,0.2624,4515.6,4515.4,0.3107]
[1758080286809,0.9007,4515.5,4515.0,0.145]
[1758080287015,0.4133,4515.3,4515.2,1.09530456]
[1758080287305,0.6757,4515.3,4515.2,1.09530456]
[1758080287510,0.6757,4515.3,4515.2,1.29010456]
[1758080287812,0.4133,4515.3,4515.2,1.48460456]
[1758080288213,0.225,4515.5,4515.3,0.3107]
[1758080288406,3.4101,4515.7,4515.6,0.7]
[1758080288606,3.8461,4515.7,4515.6,1.48460456]
[1758080288907,4.1085,4515.7,4515.6,1.48460456]
[1758080292810,3.2078,4516.2,4516.0,0.1227]
[1758080293011,0.4734,4515.7,4515.6,0.78460456]
[1758080293214,0.9007,4515.7,4515.6,1.29010456]
[1758080293814,0.6383,4515.7,4515.6,1.48460456]
[1758080294818,0.9007,4515.7,4515.6,1.48460456]
[1758080295315,4.1085,4515.7,4515.5,0.3107]
[1758080295516,0.4133,4515.4,4515.3,0.3107]
[1758080295817,0.9007,4515.4,4515.3,0.3107]
[1758080296316,0.4133,4515.2,4515.1,0.3107]
[1758080296610,3.8835,4515.2,4515.1,0.5055]
[1758080297508,3.8835,4515.2,4515.1,0.3107]
[1758080298217,3.8835,4515.2,4515.1,0.5055]
[1758080300019,4.1085,4515.2,4515.1,0.5055]
[1758080312024,4.1085,4515.2,4515.1,0.3107]
[1758080312321,4.6873773,4515.2,4515.1,0.3107]
[1758080312522,4.87474061,4515.2,4515.1,0.3107]
[1758080312722,4.87474061,4515.2,4514.8,0.2979]
[1758080312920,4.87474061,4515.2,4514.6,0.0221]
[1758080312921,0.6793,4514.7,4514.6,0.0221]
[1758080313119,4.87831141,4514.7,4514.6,0.32]
[1758080313318,4.87831141,4514.7,4514.6,0.2979]
[1758080314422,4.87831141,4514.7,4514.1,0.2979]
[1758080314725,0.4172,4514.1,4514.0,1.30080456]
[1758080315027,0.82956331,4514.1,4514.0,1.30080456]
[1758080315227,0.82956331,4514.1,4514.0,1.59870456]
[1758080318529,0.82944925,4514.1,4514.0,1.59870456]
[1758080319224,0.82944925,4514.1,4514.0,0.8141]
[1758080319724,0.82944925,4514.1,4514.0,1.59870456]
[1758080321230,1.09154925,4514.1,4514.0,1.59870456]
[1758080322628,0.82944925,4514.1,4514.0,1.59870456]
[1758080322830,0.82944925,4514.1,4514.0,0.8141]
[1758080323030,0.82944925,4514.1,4514.0,1.59870456]
[1758080324032,0.60444925,4514.1,4514.0,1.59870456]
[1758080324331,0.82944925,4514.1,4514.0,1.59870456]
[1758080324830,0.82944925,4514.1,4514.0,0.8141]
[1758080325031,0.60444925,4514.1,4514.0,1.59870456]
[1758080325331,0.82944925,4514.1,4514.0,1.59870456]
[1758080325533,0.62084925,4514.1,4514.0,0.8141]
[1758080325733,0.62084925,4514.1,4514.0,1.59870456]
[1758080326235,0.62101413,4514.1,4514.0,1.59870456]
[1758080326930,1.09171413,4514.1,4514.0,0.2979]
[1758080328036,1.09171413,4514.1,4514.0,0.6142]
[1758080329338,1.09178119,4514.1,4514.0,0.6142]
[1758080329537,1.67150458,4514.1,4514.0,0.6142]
[1758080331139,2.45610914,4514.1,4513.6,0.2979]
[1758080331339,3.8871,4513.7,4513.6,0.2979]
[1758080331642,4.29958119,4513.7,4513.6,0.2979]
[1758080333438,4.29958119,4513.7,4513.6,0.4975]
[1758080333935,6.08326462,4513.7,4513.6,0.4975]
[1758080335338,6.08326462,4513.7,4513.6,0.2979]
[1758080335844,4.29954697,4513.7,4513.6,0.2979]
[1758080336438,0.4039,4513.5,4513.4,0.78460456]
[1758080336638,0.6657,4513.4,4513.3,0.2161]
[1758080336845,0.85314697,4513.4,4513.3,0.194]
[1758080337142,0.85314697,4513.4,4513.3,0.5133]
[1758080337537,0.85314697,4513.4,4513.3,0.3193]
[1758080337741,0.6657,4513.4,4513.0,0.1167]
[1758080337942,3.8735,4513.2,4513.1,0.3193]
[1758080338240,4.06094162,4513.2,4513.1,0.3193]
[1758080340242,4.06094162,4513.2,4513.1,0.5152]
[1758080340443,3.79914162,4513.2,4513.1,0.7097]
[1758080340643,4.02414162,4513.2,4513.1,0.7097]
[1758080342240,4.28664162,4513.2,4513.1,0.7097]
[1758080342442,3.6117,4513.2,4513.1,0.7097]
[1758080342639,3.8367,4513.2,4513.1,0.7097]
[1758080343846,4.0992,4513.2,4513.1,0.7097]
[1758080346953,3.8742,4513.2,4513.1,0.7097]
[1758080347155,4.0992,4513.2,4513.1,0.7097]
[1758080347647,4.0992,4513.2,4513.1,0.5152]
[1758080347844,4.0992,4513.2,4512.9,0.313]
[1758080348046,4.0992,4513.2,4513.0,0.2909]
[1758080348452,41.459,4513.1,4513.0,0.4868]
[1758080348647,41.1965,4513.1,4513.0,0.8037]
[1758080349253,41.4215,4513.1,4513.0,1.74663483]
[1758080349653,41.4215,4513.1,4513.0,0.8037]
[1758080350551,41.684,4513.1,4513.0,0.2909]
[1758080350753,41.459,4513.1,4513.0,0.2909]
[1758080350947,41.459,4513.1,4512.9,0.0221]
[1758080350948,42.84851484,4513.1,4512.9,0.0221]
[1758080351153,0.659,4512.0,4511.9,0.2909]
[1758080351356,4.0918,4512.0,4511.9,0.2909]
[1758080351552,4.0918,4512.0,4511.5,0.1224]
[1758080351751,44.8918,4512.0,4511.6,0.2909]
[1758080352153,44.8918,4512.0,4511.5,0.1224]
[1758080352367,44.9925,4512.0,4511.6,0.2909]
[1758080352655,44.9925,4512.0,4511.2,3.2078]
[1758080352850,0.3965,4511.4,4511.3,0.4868]
[1758080353052,0.884,4511.4,4511.3,0.4868]
[1758080353852,0.6215,4511.4,4511.3,0.6813]
[1758080355048,0.2625,4511.1,4510.5,0.1367]
[1758080355252,0.659,4510.6,4510.5,0.6235]
[1758080355451,0.6215,4510.6,4510.5,0.818]
[1758080355955,0.884,4510.6,4510.5,0.6235]
[1758080356251,0.198,4510.6,4510.5,1.76093483]
[1758080356458,0.225,4510.6,4510.5,1.76093483]
[1758080356654,0.225,4510.6,4510.5,0.818]
[1758080356956,0.423,4510.6,4510.5,0.818]
[1758080357255,0.423,4510.6,4510.5,0.8037]
[1758080357655,0.198,4510.6,4510.5,0.8037]
[1758080357846,0.225,4510.6,4510.5,0.8037]
[1758080358247,0.3965,4511.1,4511.0,0.8037]
[1758080358456,0.6215,4511.1,4511.0,0.8037]
[1758080359256,0.884,4511.1,4511.0,0.8037]